fUSD/lending_fUSD_20260116
["ID","MTS","AMOUNT","RATE_DAILY","PERIOD"]
[402146466,1768553595901,-669.34,0.00036164,10]
[402146467,1768553595911,-500.0,0.00036164,10]
[402146468,1768553595921,-500.0,0.00036164,10]
[402146469,1768553595930,-1695.98,0.00036164,10]
[402146470,1768553595940,-500.0,0.00036164,10]
[402146471,1768553595949,-539.7551802,0.00036164,10]
[402146472,1768553595959,-500.0,0.00036164,10]
[402146473,1768553595968,-500.0,0.00036164,10]
[402146474,1768553595978,-500.0,0.00036164,10]
[402146475,1768553595987,-746.93,0.00036164,10]
[402146476,1768553595996,-500.0,0.00036164,10]
[402146477,1768553596006,-710.63,0.00036164,10]
[402146478,1768553596015,-501.26554391,0.00036164,10]
[402146479,1768553596031,-500.0,0.00036164,10]
[402146480,1768553596052,-576.53,0.00036164,10]
[402146481,1768553596070,-528.37806263,0.00036164,10]
[402146482,1768553596081,-551.55,0.00036164,10]
[402146483,1768553596090,-848.31,0.00036164,10]
[402146484,1768553596100,-500.0,0.00036164,10]
[402146485,1768553596111,-500.0,0.00036164,10]
[402146486,1768553596120,-500.0,0.00036164,10]
[402146487,1768553596130,-500.0,0.00036164,10]
[402146488,1768553596139,-640.15,0.00036164,10]
[402146489,1768553596148,-506.71688371,0.00036164,10]
[402146490,1768553596158,-893.03,0.00036164,10]
[402146491,1768553596166,-829.07,0.00036164,10]
[402146492,1768553596176,-500.0,0.00036164,10]
[402146493,1768553596185,-500.0,0.00036164,10]
[402146494,1768553596194,-500.0,0.00036164,10]
[402146495,1768553596203,-1044.65,0.00036164,2]
[402146496,1768553596213,-580.09,0.00036164,10]
[402146497,1768553596222,-500.0,0.00036164,10]
[402146498,1768553596231,-2280.83,0.00036164,10]
[402146499,1768553596240,-506.47433871,0.00036164,10]
[402146500,1768553596249,-950.38,0.00036164,10]
[402146501,1768553596259,-925.85,0.00036164,10]
[402146502,1768553596269,-500.0,0.00036164,10]
[402146503,1768553596278,-926.38,0.00036164,10]
[402146504,1768553596288,-1091.37,0.00036164,10]
[402146505,1768553596298,-375.48903189,0.00036164,10]
[402146506,1768553596308,-934.74,0.00036164,10]
[402146507,1768553596317,-500.0,0.00036164,10]
[402146508,1768553596327,-500.0,0.00036164,10]
[402146509,1768553596337,-500.0,0.00036164,2]
[402146510,1768553596346,-1096.7,0.00036164,10]
[402146511,1768553596356,-500.0,0.00036164,120]
[402146512,1768553596365,-500.0,0.00036164,10]
[402146513,1768553596374,-500.0,0.00036164,10]
[402146514,1768553596384,-500.0,0.00036164,10]
[402146515,1768553596393,-500.0,0.00036164,10]
[402146516,1768553596402,-509.39505785,0.00036164,10]
[402146517,1768553596412,-615.77,0.00036164,10]
[402146518,1768553596423,-500.0,0.00036164,10]
[402146519,1768553596432,-694.36,0.00036164,10]
[402146520,1768553596442,-816.08,0.00036164,10]
[402146521,1768553596451,-500.0,0.00036164,10]
[402146522,1768553596462,-703.54,0.00036164,10]
[402146523,1768553596471,-505.51894968,0.00036164,10]
[402146524,1768553596480,-500.0,0.00036164,10]
[402146525,1768553596490,-1150.42,0.00036164,10]
[402146526,1768553596499,-500.0,0.00036164,10]
[402146527,1768553596509,-500.0,0.00036164,10]
[402146528,1768553596518,-658.36,0.00036164,10]
[402146529,1768553596530,-788.58,0.00036164,10]
[402146530,1768553596541,-578.18,0.00036164,10]
[402146531,1768553596551,-1428.02,0.00036164,10]
[402146532,1768553596561,-500.0,0.00036164,10]
[402146533,1768553596572,-705.82,0.00036164,10]
[402146534,1768553596582,-931.05,0.00036164,10]
[402146535,1768553596592,-524.78801476,0.00036164,10]
[402146536,1768553596602,-577.64,0.00036164,10]
[402146537,1768553596612,-528.44,0.00036164,10]
[402146538,1768553596621,-500.0,0.00036164,10]
[402146539,1768553596630,-2108.45,0.00036164,10]
[402146540,1768553596640,-500.0,0.00036164,10]
[402146541,1768553596649,-1149.82,0.00036164,10]
[402146542,1768553596658,-545.63,0.00036164,10]
[402146543,1768553596668,-500.0,0.00036164,10]
[402146544,1768553596677,-512.24045797,0.00036164,10]
[402146545,1768553596687,-683.35,0.00036164,10]
[402146546,1768553596697,-500.0,0.00036164,10]
[402146547,1768553596707,-959.04,0.00036164,10]
[402146548,1768553596717,-500.0,0.00036164,10]
[402146549,1768553596726,-500.0,0.00036164,10]
[402146550,1768553596735,-500.0,0.00036164,10]
[402146551,1768553596744,-700.17,0.00036164,10]
[402146552,1768553596754,-500.0,0.00036164,10]
[402146553,1768553596763,-500.0,0.00036164,10]
[402146554,1768553596773,-500.0,0.00036164,10]
[402146555,1768553596782,-625.74,0.00036164,10]
[402146556,1768553596791,-500.0,0.00036164,10]
[402146557,1768553596801,-500.0,0.00036164,10]
[402146558,1768553596811,-500.0,0.00036164,10]
[402146559,1768553596820,-754.4,0.00036164,10]
[402146560,1768553596830,-500.0,0.00036164,10]
[402146561,1768553596839,-500.0,0.00036164,10]
[402146562,1768553596849,-737.5,0.00036164,10]
[402146563,1768553596859,-531.07048298,0.00036164,10]
[402146564,1768553596869,-637.87,0.00036164,10]
[402146565,1768553597014,-625.2,0.00036164,10]
[402146566,1768553597024,-641.84,0.00036164,10]
[402146567,1768553597034,-610.78,0.00036164,10]
[402146568,1768553597044,-544.89,0.00036164,10]
[402146569,1768553597053,-531.83103361,0.00036164,10]
[402146570,1768553597063,-523.76,0.00036164,10]
[402146571,1768553597072,-500.0,0.00036164,10]
[402146572,1768553597082,-500.0,0.00036164,10]
[402146573,1768553597091,-500.0,0.00036164,10]
[402146574,1768553597101,-500.0,0.00036164,10]
[402146575,1768553597110,-551.65,0.00036164,10]
[402146576,1768553597120,-1594.08,0.00036164,10]
[402146577,1768553597129,-500.0,0.00036164,10]
[402146578,1768553597139,-500.0,0.00036164,10]
[402146579,1768553597148,-171.39609564,0.00036164,10]
[402146580,1768553597158,-500.0,0.00036164,10]
[402146581,1768553597167,-500.0,0.00036164,10]
[402146582,1768553597177,-500.0,0.00036164,10]
[402146583,1768553597187,-796.44,0.00036164,10]
[402146584,1768553597196,-500.0,0.00036164,10]
[402146585,1768553597205,-500.0,0.00036164,10]
[402146586,1768553597214,-500.0,0.00036164,10]
[402146587,1768553597224,-500.0,0.00036164,10]
[402146588,1768553597233,-1146.06,0.00036164,10]
[402146589,1768553597242,-567.16,0.00036164,10]
[402146590,1768553597251,-517.33,0.00036164,10]
[402146591,1768553597261,-500.0,0.00036164,10]
[402146592,1768553597270,-500.0,0.00036164,10]
[402146593,1768553597281,-500.0,0.00036164,10]
[402146594,1768553597290,-500.0,0.00036164,10]
[402146595,1768553597300,-522.75,0.00036164,10]
[402146596,1768553597309,-529.63715981,0.00036164,10]
[402146597,1768553597319,-500.0,0.00036164,10]
[402146598,1768553597328,-500.0,0.00036164,10]
[402146599,1768553597337,-500.0,0.00036164,10]
[402146600,1768553597346,-500.0,0.00036164,10]
[402146601,1768553597355,-500.0,0.00036164,10]
[402146602,1768553597365,-751.2,0.00036164,10]
[402146603,1768553597373,-500.0,0.00036164,10]
[402146604,1768553597383,-662.29,0.00036164,10]
[402146605,1768553597392,-669.08,0.00036164,10]
[402146606,1768553597401,-500.0,0.00036164,10]
[402146607,1768553597410,-501.0284698,0.00036164,10]
[402146608,1768553597419,-677.54,0.00036164,10]
[402146609,1768553597429,-1168.86,0.00036164,10]
[402146610,1768553597438,-500.0,0.00036164,10]
[402146611,1768553597447,-1117.06,0.00036164,10]
[402146612,1768553597456,-1648.88,0.00036164,10]
[402146613,1768553597465,-500.0,0.00036164,10]
[402146614,1768553597475,-636.52,0.00036164,10]
[402146615,1768553597484,-636.43,0.00036164,10]
[402146616,1768553597493,-500.0,0.00036164,10]
[402146617,1768553597502,-503.31171979,0.00036164,10]
[402146618,1768553597511,-575.94,0.00036164,10]
[402146619,1768553597520,-716.91,0.00036164,10]
[402146620,1768553597532,-876.77,0.00036164,10]
[402146621,1768553597541,-500.0,0.00036164,10]
[402146622,1768553597550,-500.0,0.00036164,10]
[402146623,1768553597560,-500.0,0.00036164,10]
[402146624,1768553597570,-500.0,0.00036164,10]
[402146625,1768553597579,-500.0,0.00036164,10]
[402146626,1768553597588,-990.78,0.00036164,10]
[402146627,1768553597598,-541.15,0.00036164,10]
[402146628,1768553597607,-500.0,0.00036164,10]
[402146629,1768553597616,-1150.93,0.00036164,10]
[402146630,1768553597625,-909.88,0.00036164,10]
[402146631,1768553597634,-500.0,0.00036164,10]
[402146632,1768553597643,-903.48,0.00036164,10]
[402146633,1768553597652,-500.0,0.00036164,10]
[402146634,1768553597661,-527.48,0.00036164,10]
[402146635,1768553597670,-500.0,0.00036164,10]
[402146636,1768553597679,-254.47690022,0.00036164,10]
[402146637,1768553597691,-500.0,0.00036164,10]
[402146638,1768553597701,-744.14,0.00036164,10]
[402146639,1768553597711,-507.96,0.00036164,10]
[402146640,1768553597724,-662.66,0.00036164,10]
[402146641,1768553597734,-530.30849732,0.00036164,10]
[402146642,1768553597744,-500.0,0.00036164,10]
[402146643,1768553597753,-500.0,0.00036164,10]
[402146644,1768553597762,-540.38402003,0.00036164,10]
[402146645,1768553597771,-690.13,0.00036164,10]
[402146646,1768553597780,-519.9,0.00036164,10]
[402146647,1768553597789,-1521.24,0.00036164,10]
[402146648,1768553597798,-823.6,0.00036164,10]
[402146649,1768553597808,-500.0,0.00036164,10]
[402146650,1768553597817,-500.0,0.00036164,10]
[402146651,1768553597826,-500.0,0.00036164,10]
[402146652,1768553597836,-500.0,0.00036164,10]
[402146653,1768553597845,-500.0,0.00036164,10]
[402146654,1768553597854,-1331.43,0.00036164,10]
[402146655,1768553597864,-500.0,0.00036164,10]
[402146656,1768553597874,-732.95,0.00036164,10]
[402146657,1768553597883,-1326.59,0.00036164,10]
[402146658,1768553597892,-1280.38,0.00036164,10]
[402146659,1768553597901,-500.0,0.00036164,10]
[402146660,1768553597910,-500.0,0.00036164,10]
[402146661,1768553597920,-791.99,0.00036164,10]
[402146662,1768553597929,-500.0,0.00036164,10]
[402146663,1768553597939,-501.35601323,0.00036164,10]
[402146664,1768553597948,-500.0,0.00036164,10]
[402146665,1768553597957,-512.72,0.00036164,10]
[402146666,1768553597966,-979.74,0.00036164,10]
[402146667,1768553597975,-347.10470295,0.00036164,10]
[402146668,1768553597985,-500.0,0.00036164,10]
[402146669,1768553597995,-500.0,0.00036164,10]
[402146670,1768553598005,-500.0,0.00036164,10]
[402146671,1768553598015,-644.37,0.00036164,10]
[402146672,1768553598024,-577.2,0.00036164,10]
[402146673,1768553598034,-970.71,0.00036164,10]
[402146674,1768553598044,-570.0,0.00036164,10]
[402146675,1768553598054,-500.0,0.00036164,10]
[402146676,1768553598063,-500.0,0.00036164,10]
[402146677,1768553598073,-500.0,0.00036164,10]
[402146678,1768553598084,-500.0,0.00036164,10]
[402146679,1768553598093,-500.0,0.00036164,10]
[402146680,1768553598102,-500.0,0.00036164,10]
[402146681,1768553598112,-500.0,0.00036164,10]
[402146682,1768553598121,-500.0,0.00036164,10]
[402146683,1768553598132,-751.52,0.00036164,10]
[402146684,1768553598142,-507.50833589,0.00036164,10]
[402146685,1768553598151,-500.0,0.00036164,10]
[402146686,1768553598161,-1015.29,0.00036164,10]
[402146687,1768553598172,-500.0,0.00036164,10]
[402146688,1768553598181,-500.0,0.00036164,10]
[402146689,1768553598190,-518.25,0.00036164,10]
[402146690,1768553598199,-500.0,0.00036164,10]
[402146691,1768553598208,-500.0,0.00036164,10]
[402146692,1768553598217,-685.85,0.00036164,10]
[402146693,1768553598226,-500.0,0.00036164,10]
[402146694,1768553598235,-612.29,0.00036164,10]
[402146695,1768553598244,-500.0,0.00036164,10]
[402146696,1768553598254,-500.0,0.00036164,10]
[402146697,1768553598263,-806.51,0.00036164,10]
[402146698,1768553598272,-500.0,0.00036164,10]
[402146699,1768553598281,-500.0,0.00036164,10]
[402146700,1768553598291,-500.0,0.00036164,10]
[402146701,1768553598300,-500.0,0.00036164,10]
[402146702,1768553598309,-549.51479118,0.00036164,10]
[402146703,1768553598318,-500.0,0.00036164,10]
[402146704,1768553598328,-695.39,0.00036164,10]
[402146705,1768553598337,-549.65,0.00036164,10]
[402146706,1768553598346,-607.83,0.00036164,10]
[402146707,1768553598354,-500.0,0.00036164,10]
[402146708,1768553598364,-538.61911702,0.00036164,10]
[402146709,1768553598373,-1220.06,0.00036164,10]
[402146710,1768553598382,-217.85929377,0.00036164,10]
[402146711,1768553598391,-1662.06,0.00036164,10]
[402146712,1768553598401,-500.0,0.00036164,10]
[402146713,1768553598410,-500.0,0.00036164,10]
[402146714,1768553598419,-509.96187181,0.00036164,10]
[402146715,1768553598427,-500.0,0.00036164,10]
[402146716,1768553598436,-530.23092791,0.00036164,10]
[402146717,1768553598445,-500.0,0.00036164,10]
[402146718,1768553598455,-500.0,0.00036164,10]
[402146719,1768553598464,-500.0,0.00036164,10]
[402146720,1768553598473,-500.0,0.00036164,10]
[402146721,1768553598482,-500.0,0.00036164,10]
[402146722,1768553598491,-1639.22,0.00036164,10]
[402146723,1768553598499,-500.0,0.00036164,10]
[402146724,1768553598509,-500.0,0.00036164,10]
[402146725,1768553598518,-500.0,0.00036164,10]
[402146727,1768553598529,-500.0,0.00036164,10]
[402146728,1768553598538,-521.74082515,0.00036164,10]
[402146729,1768553598548,-908.6,0.00036164,10]
[402146730,1768553598557,-500.0,0.00036164,10]
[402146731,1768553598566,-500.0,0.00036164,10]
[402146732,1768553598577,-500.0,0.00036164,10]
[402146733,1768553598585,-500.0,0.00036164,10]
[402146734,1768553598594,-1617.91,0.00036164,10]
[402146735,1768553598612,-816.75,0.00036164,10]
[402146736,1768553598626,-1143.12,0.00036164,10]
[402146737,1768553598635,-500.0,0.00036164,10]
[402146738,1768553598646,-562.7990673,0.00036164,10]
[402146739,1768553598655,-500.0,0.00036164,10]
[402146740,1768553598664,-500.0,0.00036164,10]
[402146741,1768553598674,-500.0,0.00036164,10]
[402146742,1768553598684,-716.45,0.00036164,10]
[402146743,1768553598694,-504.83962164,0.00036164,10]
[402146744,1768553598703,-500.0,0.00036164,10]
[402146745,1768553598713,-885.26,0.00036164,10]
[402146746,1768553598723,-1027.78,0.00036164,10]
[402146747,1768553598731,-500.0,0.00036164,10]
[402146748,1768553598740,-500.0,0.00036164,10]
[402146749,1768553598749,-678.11,0.00036164,10]
[402146750,1768553598757,-500.0,0.00036164,10]
[402146751,1768553598766,-364.22244279,0.00036164,10]
[402146752,1768553598774,-500.0,0.00036164,10]
[402146753,1768553598783,-1096.77,0.00036164,10]
[402146754,1768553598792,-500.0,0.00036164,10]
[402146755,1768553598801,-500.0,0.00036164,10]
[402146756,1768553598810,-681.79,0.00036164,10]
[402146757,1768553598819,-500.0,0.00036164,10]
[402146758,1768553598827,-437.63206324,0.00036164,10]
[402146759,1768553598836,-500.0,0.00036164,10]
[402146760,1768553598845,-503.37207694,0.00036164,10]
[402146761,1768553598854,-702.08,0.00036164,10]
[402146762,1768553598863,-1477.47,0.00036164,10]
[402146763,1768553598872,-500.0,0.00036164,10]
[402146764,1768553598881,-500.0,0.00036164,10]
[402146765,1768553598890,-989.99,0.00036164,10]
[402146766,1768553598898,-500.0,0.00036164,10]
[402146767,1768553598907,-676.3,0.00036164,10]
[402146768,1768553598916,-500.0,0.00036164,10]
[402146769,1768553598925,-500.0,0.00036164,10]
[402146770,1768553598934,-500.0,0.00036164,10]
[402146771,1768553598943,-194.66429504,0.00036164,10]
[402146772,1768553598952,-500.0,0.00036164,10]
[402146773,1768553598961,-912.84,0.00036164,10]
[402146774,1768553598969,-500.0,0.00036164,10]
[402146775,1768553598978,-504.9662868,0.00036164,10]
[402146776,1768553598991,-807.54,0.00036164,10]
[402146777,1768553599001,-500.0,0.00036164,10]
[402146778,1768553599010,-591.47,0.00036164,10]
[402146779,1768553599018,-267.31537469,0.00036164,10]
[402146780,1768553599027,-556.98961961,0.00036164,10]
[402146781,1768553599036,-518.5998788,0.00036164,10]
[402146782,1768553599046,-506.42553316,0.00036164,10]
[402146783,1768553599056,-500.0,0.00036164,10]
[402146784,1768553599065,-500.0,0.00036164,10]
[402146785,1768553599074,-1293.68,0.00036164,10]
[402146786,1768553599083,-500.0,0.00036164,10]
[402146787,1768553599093,-500.0,0.00036164,10]
[402146788,1768553599101,-500.0,0.00036164,10]
[402146789,1768553599111,-500.0,0.00036164,10]
[402146790,1768553599120,-500.0,0.00036164,10]
[402146791,1768553599129,-500.0,0.00036164,10]
[402146792,1768553599139,-618.86,0.00036164,10]
[402146793,1768553599148,-500.0,0.00036164,10]
[402146794,1768553599158,-834.67,0.00036164,10]
[402146795,1768553599167,-500.0,0.00036164,10]
[402146796,1768553599175,-4949.68,0.00036164,10]
[402146797,1768553599184,-1730.65,0.00036164,10]
[402146798,1768553599193,-500.0,0.00036164,10]
[402146799,1768553599203,-500.0,0.00036164,10]
[402146800,1768553599212,-502.38220358,0.00036164,10]
[402146801,1768553599221,-500.46,0.00036164,10]
[402146802,1768553599231,-500.0,0.00036164,10]
[402146803,1768553599241,-930.98,0.00036164,10]
[402146804,1768553599250,-500.0,0.00036164,10]
[402146806,1768553599260,-875.62,0.00036164,10]
[402146807,1768553599269,-500.0,0.00036164,10]
[402146808,1768553599278,-500.0,0.00036164,10]
[402146809,1768553599287,-500.0,0.00036164,10]
[402146810,1768553599296,-1041.0,0.00036164,10]
[402146811,1768553599306,-500.0,0.00036164,10]
[402146812,1768553599315,-500.0,0.00036164,10]
[402146813,1768553599325,-524.92,0.00036164,10]
[402146814,1768553599334,-1262.31,0.00036164,10]
[402146815,1768553599348,-591.83,0.00036164,10]
[402146817,1768553599357,-500.0,0.00036164,10]
[402146818,1768553599366,-500.0,0.00036164,10]
[402146819,1768553599375,-500.0,0.00036164,10]
[402146820,1768553599384,-614.68,0.00036164,10]
[402146821,1768553599393,-500.0,0.00036164,10]
[402146822,1768553599403,-790.99,0.00036164,10]
[402146823,1768553599411,-500.0,0.00036164,10]
[402146824,1768553599421,-1848.72,0.00036164,10]
[402146825,1768553599430,-353.65,0.00036164,2]
[402146826,1768553599440,-500.0,0.00036164,10]
[402146827,1768553599450,-1044.21,0.00036164,10]
[402146828,1768553599459,-500.0,0.00036164,2]
[402146829,1768553599468,-500.0,0.00036164,10]
[402146830,1768553599478,-500.0,0.00036164,10]
[402146831,1768553599488,-500.0,0.00036164,10]
[402146832,1768553599497,-500.0,0.00036164,10]
[402146833,1768553599507,-1947.44,0.00036164,10]
[402146834,1768553599517,-606.32243719,0.00036164,10]
[402146835,1768553599527,-629.32,0.00036164,10]
[402146836,1768553599538,-593.08178485,0.00036164,10]
[402146837,1768553599549,-1553.42,0.00036164,10]
[402146838,1768553599559,-500.0,0.00036164,10]
[402146839,1768553599568,-1024.82,0.00036164,10]
[402146840,1768553599578,-500.0,0.00036164,10]
[402146841,1768553599589,-875.71,0.00036164,10]
[402146842,1768553599599,-500.0,0.00036164,10]
[402146843,1768553599610,-500.0,0.00036164,10]
[402146844,1768553599622,-795.66,0.00036164,10]
[402146845,1768553599633,-500.0,0.00036164,10]
[402146846,1768553599642,-1036.49,0.00036164,10]
[402146847,1768553599651,-1013.98,0.00036164,10]
[402146848,1768553599662,-502.16467197,0.00036164,10]
[402146849,1768553599674,-562.25,0.00036164,10]
[402146850,1768553599687,-548.64,0.00036164,10]
[402146851,1768553599697,-543.96,0.00036164,10]
[402146852,1768553599711,-1422.5,0.00036164,10]
[402146853,1768553599722,-500.0,0.00036164,10]
[402146854,1768553599733,-1126.68,0.00036164,10]
[402146855,1768553599742,-506.63912405,0.00036164,10]
[402146857,1768553599753,-2121.76,0.00036164,10]
[402146858,1768553599764,-1905.23,0.00036164,10]
[402146859,1768553599774,-532.76,0.00036164,10]
[402146860,1768553599785,-502.52,0.00036164,10]
[402146861,1768553599796,-500.0,0.00036164,10]
[402146862,1768553599807,-564.32892858,0.00036164,10]
[402146863,1768553599817,-500.0,0.00036164,10]
[402146864,1768553599828,-500.0,0.00036164,10]
[402146865,1768553599838,-540.07,0.00036164,10]
[402146866,1768553599848,-1016.35,0.00036164,10]
[402146867,1768553599859,-5056.94,0.00036164,10]
[402146868,1768553599871,-500.0,0.00036164,10]
[402146869,1768553599881,-592.16,0.00036164,10]
[402146870,1768553599892,-889.56,0.00036164,10]
[402146871,1768553599903,-506.70196226,0.00036164,10]
[402146872,1768553599913,-500.0,0.00036164,10]
[402146873,1768553599924,-500.0,0.00036164,10]
[402146874,1768553599935,-1150.45,0.00036164,10]
[402146875,1768553599945,-1345.33,0.00036164,10]
[402146876,1768553599956,-648.45,0.00036164,10]
[402146877,1768553599967,-1052.14,0.00036164,10]
[402146878,1768553599978,-500.0,0.00036164,10]
[402146879,1768553599988,-990.43,0.00036164,10]
[402146880,1768553599999,-500.0,0.00036164,10]
[402146881,1768553600010,-613.28393105,0.00036164,10]
[402146882,1768553600021,-877.08,0.00036164,10]
[402146883,1768553600032,-1245.81,0.00036164,10]
[402146884,1768553600042,-500.0,0.00036164,10]
[402146885,1768553600054,-333.76493759,0.00036164,10]
[402146886,1768553600068,-665.86,0.00036164,10]
[402146887,1768553600078,-1029.8,0.00036164,10]
[402146888,1768553600089,-500.0,0.00036164,10]
[402146889,1768553600100,-1298.7,0.00036164,10]
[402146890,1768553600110,-581.72,0.00036164,10]
[402146891,1768553600121,-850.69,0.00036164,10]
[402146892,1768553600132,-995.5,0.00036164,10]
[402146893,1768553600143,-1075.5,0.00036164,10]
[402146894,1768553600153,-500.0,0.00036164,10]
[402146895,1768553600165,-500.0,0.00036164,10]
[402146897,1768553600175,-529.03,0.00036164,10]
[402146898,1768553600186,-500.0,0.00036164,10]
[402146899,1768553600197,-519.23,0.00036164,10]
[402146900,1768553600207,-716.08,0.00036164,10]
[402146901,1768553600218,-500.0,0.00036164,10]
[402146902,1768553600230,-1363.31,0.00036164,10]
[402146903,1768553600239,-598.71,0.00036164,10]
[402146904,1768553600255,-1221.02,0.00036164,10]
[402146905,1768553600265,-1064.34,0.00036164,10]
[402146906,1768553600276,-823.04,0.00036164,10]
[402146907,1768553600287,-500.0,0.00036164,10]
[402146908,1768553600299,-2853.19,0.00036164,10]
[402146909,1768553600310,-500.0,0.00036164,10]
[402146910,1768553600320,-500.0,0.00036164,10]
[402146911,1768553600331,-500.0,0.00036164,10]
[402146912,1768553600342,-549.28,0.00036164,10]
[402146913,1768553600353,-500.0,0.00036164,10]
[402146914,1768553600364,-500.0,0.00036164,10]
[402146915,1768553600374,-913.43,0.00036164,10]
[402146916,1768553600386,-591.9,0.00036164,10]
[402146917,1768553600398,-582.68685405,0.00036164,10]
[402146918,1768553600409,-500.0,0.00036164,10]
[402146919,1768553600420,-500.0,0.00036164,10]
[402146920,1768553600430,-2393.97,0.00036164,10]
[402146921,1768553600444,-500.0,0.00036164,10]
[402146922,1768553600454,-500.0,0.00036164,10]
[402146923,1768553600465,-506.37132421,0.00036164,10]
[402146924,1768553600476,-500.0,0.00036164,10]
[402146925,1768553600487,-2257.21,0.00036164,10]
[402146926,1768553600497,-589.47,0.00036164,10]
[402146927,1768553600509,-505.8112543,0.00036164,10]
[402146928,1768553600519,-805.83,0.00036164,10]
[402146929,1768553600533,-511.7909621,0.00036164,10]
[402146930,1768553600544,-546.1,0.00036164,10]
[402146931,1768553600555,-500.0,0.00036164,10]
[402146932,1768553600566,-500.0,0.00036164,10]
[402146933,1768553600578,-500.0,0.00036164,10]
[402146934,1768553600590,-1412.18,0.00036164,10]
[402146935,1768553600601,-500.0,0.00036164,10]
[402146936,1768553600612,-1000.0,0.00036164,10]
[402146937,1768553600623,-500.0,0.00036164,10]
[402146939,1768553600634,-500.0,0.00036164,10]
[402146940,1768553600645,-500.0,0.00036164,10]
[402146941,1768553600656,-500.0,0.00036164,10]
[402146942,1768553600669,-200.0,0.00036164,120]
[402146943,1768553600680,-712.99,0.00036164,10]
[402146944,1768553600693,-500.0,0.00036164,10]
[402146945,1768553600704,-1245.62,0.00036164,10]
[402146946,1768553600715,-661.07,0.00036164,10]
[402146947,1768553600726,-732.11,0.00036164,10]
[402146948,1768553600737,-693.86,0.00036164,10]
[402146949,1768553600748,-652.47,0.00036164,10]
[402146950,1768553600758,-1182.17,0.00036164,10]
[402146951,1768553600769,-713.12,0.00036164,10]
[402146952,1768553600780,-714.22,0.00036164,10]
[402146953,1768553600790,-652.5,0.00036164,10]
[402146954,1768553600805,-500.0,0.00036164,10]
[402146955,1768553600826,-500.0,0.00036164,10]
[402146956,1768553600839,-500.0,0.00036164,10]
[402146957,1768553600851,-1497.09,0.00036164,10]
[402146958,1768553600865,-1210.4,0.00036164,10]
[402146959,1768553600876,-1212.59,0.00036164,10]
[402146960,1768553600889,-941.66,0.00036164,10]
[402146961,1768553600901,-530.65391682,0.00036164,10]
[402146962,1768553600914,-500.0,0.00036164,10]
[402146963,1768553600925,-1223.9,0.00036164,10]
[402146964,1768553600937,-500.0,0.00036164,10]
[402146965,1768553600948,-2111.98,0.00036164,2]
[402146966,1768553600960,-1292.5,0.00036164,10]
[402146967,1768553600972,-1141.45,0.00036164,10]
[402146968,1768553600984,-885.86,0.00036164,10]
[402146969,1768553600995,-520.6,0.00036164,10]
[402146970,1768553601006,-500.0,0.00036164,10]
[402146971,1768553601017,-3901.38,0.00036164,10]